[Event "1000GM Saint Louis 2022"]
[Site "Saint Louis"]
[Date "2022.07.22"]
[Round "7.3"]
[White "Dragun, Kamil"]
[Black "Eswaran, Ashritha"]
[Result "1-0"]
[ECO "B15"]
[WhiteElo "2563"]
[BlackElo "2394"]
[Annotator "TA"]
[PlyCount "127"]
[EventDate "2022.07.20"]
[EventType "tourn"]
[EventCountry "USA"]
[SourceTitle "playchess.com"]
[Source "ChessBase"]
[SourceQuality "1"]
[TimeControl "5400+30"]

{[%evp 15,127,36,20,16,25,14,32,0,8,0,25,26,5,0,24,15,14,16,50,49,64,64,58,43,37,25,52,27,28,15,71,73,76,68,135,131,203,193,193,205,219,222,216,208,220,219,212,218,223,222,318,318,328,328,301,293,352,352,350,336,310,341,397,375,399,397,355,341,404,422,432,428,429,412,436,406,396,396,399,397,395,390,321,383,375,329,367,338,471,471,593,471,565,506,522,464,737,691,786,724,735,668,1743,1663,1425,1404,1351,1351,6170,6024,5594,5579,4652,4618]} 1. e4 {[%emt 0:00:04]} c6 {[%emt 0:00:33]} 2. d4 {[%emt 0:00:09]} d5 {[%emt 0:00:07]} 3. Nc3 {[%emt 0:00:05]} dxe4 {[%emt 0:00:09]} 4. Nxe4 {[%emt 0:00:09]} Nf6 {[%emt 0:00:11]} 5. Nxf6+ {[%emt 0:00:06]} exf6 {[%emt 0:00:09]} 6. c3 {[%emt 0:00:04]} Bd6 {[%emt 0:00:18]} 7. Bd3 {[%emt 0:00:07]} O-O {[%emt 0:00:18]} 8. Ne2 {[%emt 0:00:04]} Re8 {[%emt 0:00:18]} 9. O-O {[%emt 0:00:09] B15: Caro-Kann: 3 Nc3: 3...g6 and 3...dxe4 4 Nxe4 Nf6 5 Nxf6+ exf6.} Nd7 {[%emt 0:01:39]} 10. Ng3 {[%emt 0:00:07]} g6 {[%emt 0:05:51] Against Nf5} 11. Bh6 {[%emt 0:01:02] [#] White is slightly better.} (11. Ne4 $5 {[%cal Re4d6]} Be7 12. Re1 $14) 11... Nb6 $146 {[%emt 0:04:06]} ({Predecessor:} 11... Nf8 12. Qd2 Ne6 13. Rae1 Bd7 14. f4 f5 15. Bxf5 gxf5 16. Nxf5 Bc7 17. Rf3 Nf8 18. Rxe8 Qxe8 {1-0 (27) Mista,A (2541)-Ostrovskiy,A (2409) Charlotte 2022}) 12. Qd2 {[%emt 0:01:29]} Be6 {[%emt 0:02:04]} 13. b3 {[%emt 0:03:12]} f5 {[%emt 0:05:10]} 14. c4 {[%emt 0:07:03]} Be7 {[%emt 0:05:42]} 15. Bc2 {[%emt 0:03:14]} Bf6 {[%emt 0:00:53]} 16. Rad1 {[%emt 0:01:10]} a5 {[%emt 0:02:18]} 17. a4 {[%emt 0:03:59]} Qe7 {[%emt 0:02:15]} 18. Rfe1 {[%emt 0:02:38][%cal Oc2f5]} Qb4 {[%emt 0:04:59]} 19. Qc1 {[%emt 0:04:21]} (19. Qf4 {is interesting.} Rad8 20. Re3 Bc8 21. Ne4) 19... Nd7 $1 {[%emt 0:01:33]} 20. Ne2 {[%emt 0:24:48][%cal Bg3e2,Be2f4,Bf4d5,Bd5c7][%mdl 32]} Nb8 {[%emt 0:03:54]} 21. Bd2 $36 {[%emt 0:11:08][%mdl 2048] White has some pressure.} (21. Qf4 {is more complex.} Bg7 22. Bxg7 Kxg7 23. Ng3) 21... Qb6 {[%emt 0:02:45]} 22. Be3 {[%emt 0:00:28] Hoping for d5.} Qc7 {[%emt 0:02:49]} (22... Qb4 $11 {keeps the balance.}) 23. Nf4 $16 {[%emt 0:02:43] White stays focused until the end.} Na6 {[%emt 0:04:00]} 24. d5 {[%emt 0:01:11]} ({Much worse is} 24. Nxe6 fxe6 25. Bg5 Bxg5 26. Qxg5 Nb4 $11) 24... cxd5 {[%emt 0:01:43]} (24... Bd7 $1 $14) 25. cxd5 {[%emt 0:00:01]} ({Reject} 25. Nxd5 $6 Bxd5 26. Rxd5 Nb4 $11) 25... Nb4 {[%emt 0:00:22]} (25... Bd7 $16) 26. dxe6 $18 {[%emt 0:06:10] Threatens to win with Rd7.} Qxc2 {[%emt 0:00:26] [#]} 27. Nd5 $1 {[%emt 0:00:40]} Rxe6 {[%emt 0:06:27] [#]} 28. Nc7 $1 {[%emt 0:00:35]} Qxc1 {[%emt 0:01:13]} 29. Rxc1 {[%emt 0:00:07]} f4 {[%emt 0:00:28][%cal Of4e3]} 30. Nxa8 {[%emt 0:01:05]} fxe3 31. Rxe3 {[%emt 0:00:11]} Rd6 {[%emt 0:01:16]} 32. g3 {[%emt 0:01:12]} Na6 {[%emt 0:03:05]} (32... Rd8 $142) 33. Nc7 {[%emt 0:03:42] And now Ne8 would win.} Nxc7 {[%emt 0:00:52]} 34. Rxc7 {[%emt 0:00:02][%mdl 4096] Endgame KRR-KRB} b6 {[%emt 0:00:51]} 35. Rf3 {[%emt 0:00:19]} h5 {[%emt 0:01:44]} 36. h4 {[%emt 0:00:16]} Kg7 {[%emt 0:00:31]} 37. Rb7 {[%emt 0:00:14]} Kf8 {[%emt 0:02:49]} 38. Kf1 {[%emt 0:00:12]} Kg7 {[%emt 0:02:43]} 39. Ke2 {[%emt 0:00:32]} Kf8 {[%emt 0:00:30]} 40. Rd3 {[%emt 0:00:31]} Re6+ {[%emt 0:00:30]} 41. Kd2 {[%emt 0:00:15] aiming for Rdd7.} Be7 {[%emt 0:00:29]} 42. Rf3 {[%emt 0:00:59]} Rc6 {[%emt 0:05:51]} 43. Kd3 {[%emt 0:01:30]} Bf6 {[%emt 0:00:49]} 44. Ke4 {[%emt 0:00:31]} Be7 {[%emt 0:00:38]} 45. Kd4 {[%emt 0:03:15]} Rc1 {[%emt 0:01:01]} 46. Kd3 {[%emt 0:00:33]} Rc6 {[%emt 0:00:16]} 47. Rf4 {[%emt 0:00:17]} Bf6 {[%emt 0:01:42]} 48. Rc4 {[%emt 0:00:47]} Rd6+ {[%emt 0:00:46]} 49. Ke4 {[%emt 0:00:32]} Bb2 {[%emt 0:01:56]} 50. f4 {[%emt 0:09:34]} Kg7 {[%emt 0:03:16]} 51. Rbc7 {[%emt 0:01:03]} Rd1 {[%emt 0:03:41]} 52. R7c6 {[%emt 0:00:48] White is clearly winning.} Rg1 {[%emt 0:05:10]} 53. Kf3 {[%emt 0:00:50]} Rd1 {[%emt 0:02:54]} 54. Rxb6 {[%emt 0:00:09]} Rd3+ {[%emt 0:01:02]} 55. Kg2 {[%emt 0:00:38]} Bc3 {[%emt 0:01:25]} (55... Rd2+ $142 56. Kh3 Ba3) 56. Rc7 {[%emt 0:01:06]} Be1 {[%emt 0:01:32]} 57. Rbb7 {[%emt 0:00:13]} Rxg3+ {[%emt 0:00:31]} 58. Kf1 {[%emt 0:00:04]} Re3 {[%emt 0:01:12]} 59. Rxf7+ {[%emt 0:00:16]} Kg8 {[%emt 0:00:14]} 60. Rfe7 {[%emt 0:00:42]} Rxe7 {[%emt 0:00:20]} 61. Rxe7 {[%emt 0:00:03]} Bxh4 {[%emt 0:00:20]} 62. Re5 {[%emt 0:00:53]} Bg3 {[%emt 0:00:27]} 63. Rxa5 {[%emt 0:00:23]} Bxf4 {[%emt 0:00:06]} 64. Rb5 {[%emt 0:00:06] Weighted Error Value: White=0.08 (flawless) /Black=0.25 (precise)} 1-0

[Event "1000GM Saint Louis 2022"]
[Site "Saint Louis"]
[Date "2022.07.22"]
[Round "7.4"]
[White "Kretchetov, Alexandre"]
[Black "Abrahamyan, Tatev"]
[Result "1/2-1/2"]
[ECO "A32"]
[WhiteElo "2219"]
[BlackElo "2291"]
[Annotator "TA"]
[PlyCount "73"]
[EventDate "2022.07.20"]
[EventType "tourn"]
[EventCountry "USA"]
[SourceTitle "playchess.com"]
[Source "ChessBase"]
[SourceQuality "1"]
[TimeControl "5400+30"]

{[%evp 15,73,0,0,-31,-11,-9,0,-55,-31,-34,-34,-60,-52,-54,-31,-54,-14,-22,-23,-53,-12,-27,-13,-16,-35,-35,0,0,0,-42,-13,-84,-84,-85,-74,-106,-57,-55,-29,-29,-29,-36,-36,-87,-107,-177,-175,-224,-29,-87,0,0,47,34,51,52,179,179,176,176]} 1. d4 {[%emt 0:00:02]} Nf6 {[%emt 0:00:09]} 2. c4 {[%emt 0:00:17]} e6 {[%emt 0:00:05]} 3. Nc3 {[%emt 0:00:07]} Bb4 {[%emt 0:00:24]} 4. e3 {[%emt 0:00:10]} O-O {[%emt 0:00:05]} 5. Bd2 {[%emt 0:00:04]} c5 {[%emt 0:00:04]} 6. Nf3 {[%emt 0:00:21]} cxd4 {[%emt 0:03:41]} 7. Nxd4 {[%emt 0:04:33]} Nc6 {[%emt 0:03:35]} 8. a3 {[%emt 0:03:31]} Be7 {[%emt 0:01:09]} 9. Nb3 {[%emt 0:09:28] A32: Symmetrical English: 2 Nf3 Nf6 3 d4 cxd4 4 Nxd4 e6.} d5 {[%emt 0:11:41]} 10. cxd5 {[%emt 0:04:23]} exd5 {[%emt 0:00:55] [#]} 11. Bc1 $146 {[%emt 0:00:48]} (11. Be2 $11) ({Predecessor:} 11. Be2 a6 12. O-O Bd6 13. g3 Be5 14. Qc2 Bh3 15. Rfd1 Rc8 16. Be1 Qe7 17. Bf3 Rfd8 18. Qe2 Be6 19. Nd4 Nxd4 20. exd4 Bb8 21. Na4 {½-½ (21) Przedmojski,R (2397)-Koziak,V (2489) Police 2008}) 11... Be6 {[%emt 0:13:03]} 12. Be2 {[%emt 0:00:35]} Ne4 {[%emt 0:00:24]} 13. Nb5 {[%emt 0:00:46]} Bf6 {[%emt 0:03:46]} 14. O-O {[%emt 0:00:42]} Qb6 {[%emt 0:04:34]} 15. N5d4 {[%emt 0:03:38]} Rac8 {[%emt 0:04:24]} 16. Nxe6 {[%emt 0:04:30]} fxe6 {[%emt 0:01:22]} 17. Nd2 {[%emt 0:00:07]} Nxd2 {[%emt 0:05:42]} ({Don't take} 17... Bxb2 18. Bxb2 Qxb2 19. Nxe4 dxe4 20. Rb1 $14) 18. Bxd2 {[%emt 0:02:08]} Qxb2 {[%emt 0:01:57]} 19. Rb1 {[%emt 0:00:04]} Qxa3 {[%emt 0:00:03]} 20. Rxb7 {[%emt 0:00:07]} Rb8 {[%emt 0:10:52]} 21. Qb1 {[%emt 0:03:30]} Bc3 {[%emt 0:21:16]} 22. Bc1 {[%emt 0:06:00]} Qd6 {[%emt 0:01:54]} 23. Bd3 {[%emt 0:01:25]} (23. Rxb8 $11 {remains equal.} Rxb8 24. Qd3) 23... Rxb7 $17 {[%emt 0:02:43]} 24. Qxb7 {[%emt 0:00:06][%cal Oc1a3]} Ne5 $1 {[%emt 0:03:12]} 25. Be2 {[%emt 0:00:46]} Qb6 {[%emt 0:01:24]} (25... a5 $1 $17) 26. Qe7 $15 {[%emt 0:00:55]} Ng6 {[%emt 0:00:15]} 27. Qd7 {[%emt 0:01:21]} Rd8 {[%emt 0:00:46]} (27... Rb8 {is more complex.} 28. Ba3 Nf8 29. Bxf8 Rd8) 28. Qa4 {[%emt 0:00:13]} a5 {[%emt 0:00:31][%cal Ba7a5,Ba5a4][%mdl 32]} 29. Qc2 {[%emt 0:01:31]} (29. Ba3 $15) 29... Qb4 $17 {[%emt 0:00:51]} 30. Rd1 {[%emt 0:03:11] [#]} (30. Bd1 $17) 30... a4 $1 $19 {[%emt 0:00:50]} 31. Rd3 {[%emt 0:00:13]} (31. Bd2 {is the only way for White.} Bxd2 32. Qxd2) 31... Bf6 $2 {[%emt 0:00:31]} ({Black should try} 31... Rc8 $19 {And now ...Qb3 would win.} 32. Bd2 Qb2) 32. Ba3 {[%emt 0:01:08]} (32. g3 $1 $11 {keeps the balance.}) 32... Qa5 {[%emt 0:00:32]} (32... Qe1+ $17 33. Bf1 Ne5) 33. Qc6 $1 $36 {[%emt 0:00:37][%mdl 2048] Black is under pressure.} Qe1+ {[%emt 0:00:35]} 34. Bf1 {[%emt 0:00:08] This bishop pair is nice.} Nf8 {[%emt 0:03:06]} 35. Qxa4 {[%emt 0:00:40]} Rc8 {[%emt 0:00:45] [#]} ({Black should play} 35... Qa1 $14) 36. Rd1 $1 $18 {[%emt 0:01:29]} Qc3 {[%emt 0:00:57]} 37. Rc1 {[%emt 0:00:02] Against Qc2. White used his chance.  Weighted Error Value: White=0.22 (precise) /Black=0.39} 1/2-1/2

[Event "1000GM Saint Louis 2022"]
[Site "Saint Louis"]
[Date "2022.07.22"]
[Round "7.5"]
[White "Chandra, Akshat"]
[Black "Yu, Jennifer"]
[Result "1/2-1/2"]
[ECO "C42"]
[WhiteElo "2485"]
[BlackElo "2268"]
[Annotator "TA"]
[PlyCount "90"]
[EventDate "2022.07.20"]
[EventType "tourn"]
[EventCountry "USA"]
[SourceTitle "playchess.com"]
[Source "ChessBase"]
[SourceQuality "1"]
[TimeControl "5400+30"]

{[%evp 13,90,12,14,0,21,14,0,3,41,37,43,0,22,26,29,0,0,0,0,21,8,0,0,0,0,-10,0,0,0,0,0,0,0,-16,-8,-14,18,-40,-47,-45,-53,-46,-50,-61,-40,-45,-46,-45,0,0,0,0,0,0,0,0,0,0,0,0,0,0,0,0,0,0,0,0,0,0,0,0,0,0,0,0,0,0,0]} 1. e4 {[%emt 0:07:01]} e5 {[%emt 0:00:09]} 2. Nf3 {[%emt 0:00:07]} Nf6 {[%emt 0:00:25]} 3. Nxe5 {[%emt 0:00:28]} d6 {[%emt 0:00:06]} 4. Nf3 {[%emt 0:00:06]} Nxe4 {[%emt 0:00:05]} 5. Nc3 {[%emt 0:00:12]} Nxc3 {[%emt 0:00:07]} 6. dxc3 {[%emt 0:00:05]} Be7 {[%emt 0:00:13]} 7. Be3 {[%emt 0:00:09]} O-O {[%emt 0:00:54]} 8. Qd2 {[%emt 0:00:26] C42: Petroff Defence: 3 Nxe5 and unusual White 3rd moves.} Nd7 {[%emt 0:00:18]} 9. O-O-O {[%emt 0:00:39]} c6 {[%emt 0:00:27]} 10. Kb1 {[%emt 0:06:32]} Nf6 {[%emt 0:02:56]} 11. Bd3 {[%emt 0:06:37] [#]} d5 $146 {[%emt 0:09:36]} ({Predecessor:} 11... Qa5 12. Rhe1 Be6 13. c4 Qa6 14. b3 Qa3 15. Bd4 d5 16. Bb2 Qb4 17. Bc3 Qa3 {½-½ (25) Sanchez Manzanares,J (2094)-Ardila,O (1988) Pereira 2022}) 12. Bg5 {[%emt 0:02:42]} Be6 {[%emt 0:03:47]} 13. h4 {[%emt 0:08:36]} Ne4 {[%emt 0:21:53]} 14. Bxe4 {[%emt 0:20:04]} dxe4 {[%emt 0:00:48]} 15. Nd4 {[%emt 0:00:32]} Qd5 {[%emt 0:10:55]} 16. Nxe6 {[%emt 0:12:30]} Qxe6 {[%emt 0:00:14]} 17. Bxe7 {[%emt 0:02:59]} Qxe7 {[%emt 0:00:06]} 18. h5 {[%emt 0:02:27]} h6 {[%emt 0:05:51]} 19. b3 {[%emt 0:02:31]} f5 {[%emt 0:05:24]} 20. Qf4 {[%emt 0:01:54]} a5 {[%emt 0:03:56]} 21. Rd6 {[%emt 0:04:30]} a4 {[%emt 0:12:15]} 22. Rhd1 {[%emt 0:01:08]} Qc7 {[%emt 0:07:12]} 23. Qe5 {[%emt 0:01:34]} axb3 {[%emt 0:00:49]} 24. cxb3 {[%emt 0:00:04]} Rf6 {[%emt 0:02:24] [#]} 25. Qc5 {[%emt 0:04:21]} (25. R6d5 $1 $11 Rc8 26. Qxc7 Rxc7 27. Re5) 25... Rxd6 $15 {[%emt 0:01:56]} 26. Rxd6 {[%emt 0:01:27][%mdl 4096] Endgame KQR-KQR} Qf7 {[%emt 0:02:16]} 27. Qc4 {[%emt 0:12:40]} Qxc4 {[%emt 0:00:19]} 28. bxc4 {[%emt 0:00:02] KR-KR} Re8 {[%emt 0:02:35]} 29. Rd7 {[%emt 0:00:54]} f4 {[%emt 0:00:10]} 30. Kc2 {[%emt 0:01:33]} ({Wrong is} 30. Rxb7 $2 e3 31. fxe3 fxe3 $19) 30... e3 {[%emt 0:03:12]} 31. fxe3 {[%emt 0:00:02] The position is equal.} fxe3 {[%emt 0:02:02] [#] Threatens to win with ...e2.} 32. Kd1 {[%emt 0:00:12]} Ra8 {[%emt 0:00:03]} 33. Rxb7 {[%emt 0:01:07]} Rxa2 {[%emt 0:00:04]} 34. Rc7 {[%emt 0:00:12]} Rd2+ {[%emt 0:01:52]} 35. Ke1 {[%emt 0:00:04]} Rxg2 {[%emt 0:00:04]} 36. Rxc6 {[%emt 0:00:11]} Kf7 {[%emt 0:01:37]} 37. c5 {[%emt 0:00:40]} Rc2 {[%emt 0:00:17]} 38. Rc7+ {[%emt 0:01:00]} Kf6 {[%emt 0:00:05]} 39. Rc6+ {[%emt 0:00:02]} Kf5 {[%emt 0:01:37]} 40. Rg6 {[%emt 0:00:13]} Rxc3 {[%emt 0:00:13]} 41. Rxg7 {[%emt 0:00:09]} Kf4 {[%emt 0:00:51]} 42. Rg6 {[%emt 0:00:16]} Rxc5 {[%emt 0:00:42]} (42... Kf3 $5 43. Rf6+ Kg4 $11) 43. Rxh6 {[%emt 0:00:05]} Rc1+ {[%emt 0:00:35]} (43... Kf3 $5 44. Rf6+ Ke4 $11) 44. Ke2 {[%emt 0:00:06]} Rc2+ {[%emt 0:00:01]} 45. Ke1 {[%emt 0:00:05]} Rh2 {[%emt 0:00:12] Weighted Error Value: White=0.07 (flawless) /Black=0.06 (flawless)} 1/2-1/2

[Event "1000GM Saint Louis 2022"]
[Site "Saint Louis"]
[Date "2022.07.22"]
[Round "8.1"]
[White "Woodward, Andy"]
[Black "Yu, Jennifer"]
[Result "0-1"]
[ECO "D17"]
[WhiteElo "2486"]
[BlackElo "2268"]
[Annotator "TA"]
[PlyCount "70"]
[EventDate "2022.07.20"]
[EventType "tourn"]
[EventCountry "USA"]
[SourceTitle "playchess.com"]
[Source "ChessBase"]
[SourceQuality "1"]
[TimeControl "5400+30"]

{[%evp 15,70,21,15,19,25,0,0,-10,43,50,47,33,69,72,68,25,33,33,37,0,0,-32,-29,-123,-103,-155,-157,-163,-163,-252,-189,-314,-277,-446,-445,-430,-366,-359,-342,-391,-382,-392,-386,-435,-432,-679,-702,-695,-681,-915,-874,-909,-900,-871,-874,-1174,-1136]} 1. d4 {[%emt 0:00:02]} d5 {[%emt 0:00:46]} 2. c4 {[%emt 0:00:06]} c6 {[%emt 0:00:22]} 3. Nf3 {[%emt 0:00:06]} Nf6 {[%emt 0:00:27]} 4. Nc3 {[%emt 0:00:06]} dxc4 {[%emt 0:00:09]} 5. a4 {[%emt 0:00:05]} Bf5 {[%emt 0:00:11]} 6. Ne5 {[%emt 0:00:06]} Nbd7 {[%emt 0:00:05]} 7. Nxc4 {[%emt 0:00:06]} Nb6 {[%emt 0:02:12]} 8. Ne5 {[%emt 0:02:02]} a5 {[%emt 0:00:06]} 9. f3 {[%emt 0:00:07] D17: Slav Defence: 5 a4 Bf5: Lines with 6 Nh4 and 6 Ne5.} Nfd7 {[%emt 0:00:04]} 10. e4 {[%emt 0:00:09]} Nxe5 {[%emt 0:01:31]} 11. exf5 {[%emt 0:00:07] The position is equal.} Nec4 {[%emt 0:04:18] was the old line (11...Ned7).} (11... Ned7 $1 $11) 12. Qb3 $14 {[%emt 0:00:26]} Nd6 {[%emt 0:05:33]} (12... Qxd4 $2 13. Bxc4 Qxc4 14. Qxb6 $18) 13. g4 {[%emt 0:01:01]} g6 {[%emt 0:16:33]} 14. Bf4 $1 {[%emt 0:02:19]} gxf5 {[%emt 0:00:37]} 15. Be5 {[%emt 0:10:16]} Rg8 {[%emt 0:00:34]} 16. O-O-O {[%emt 0:01:05]} e6 {[%emt 0:06:02][%cal Be7e6,Be6f5,Bf5f4][%mdl 32]} 17. gxf5 {[%emt 0:02:31]} Nxf5 {[%emt 0:00:36]} 18. Bh3 {[%emt 0:05:53] [#] aiming for Bxf5.} Bb4 {[%emt 0:09:27] [#] Threatening ...Qg5+.} 19. Ne4 $146 {[%emt 0:01:30] Prevents Qg5+. Black converts the advantage convincingly.} (19. Rdg1 $11 Rg6 20. Bxf5 exf5 21. h4) ({Predecessor:} 19. Rhg1 Rg6 20. Bxf5 exf5 21. Bg7 Qe7 22. Na2 Qe6 23. Qxe6+ fxe6 24. Nxb4 axb4 25. Rxg6 hxg6 {0-1 (55) Ganguly,S (2631)-Yu,R (2428) Qinhuangdao 2011}) 19... Rg6 {[%emt 0:10:25]} 20. Qd3 {[%emt 0:19:52]} (20. Bxf5 $142 exf5 21. Nc3) 20... Nd5 $17 {[%emt 0:07:17]} ({Stronger than} 20... Nxa4 21. d5 cxd5 22. Qb5+ Kf8 23. Qxa4 $17) 21. Bxf5 {[%emt 0:06:15]} exf5 {[%emt 0:00:07]} 22. Nc5 {[%emt 0:00:21]} (22. Nc3 $142) 22... Qe7 {[%emt 0:12:57] And now ...f4 would win.} 23. Kb1 {[%emt 0:06:33]} (23. Rhe1 $142 Bxe1 24. Rxe1) 23... f4 {[%emt 0:04:06]} ({Inferior is} 23... Bxc5 24. dxc5 Qxc5 25. Qxf5 $15) 24. Rhe1 $2 {[%emt 0:07:23]} (24. Qe4 f5 25. Qxf5 Bxc5 26. Rde1 (26. dxc5 $2 Rg5 $19)) 24... Bxe1 $19 {[%emt 0:01:52]} 25. Rxe1 {[%emt 0:00:24]} Kf8 {[%emt 0:04:35] White must now prevent ...f6.} 26. Qd2 {[%emt 0:03:49][%cal Oe5g7]} Kg8 {[%emt 0:06:00] Against Bg7} 27. Bxf4 {[%emt 0:01:03]} Qf6 {[%emt 0:00:04]} 28. Bg3 {[%emt 0:02:01]} b6 {[%emt 0:01:22]} 29. Ne4 {[%emt 0:02:41]} Qxf3 {[%emt 0:00:15] Black is clearly winning.} 30. Nd6 {[%emt 0:00:20]} (30. Nc3 $142) 30... Nb4 {[%emt 0:00:56]} 31. Qc3 {[%emt 0:02:07]} Qd5 {[%emt 0:00:30] Threatens to win with ...Rd8.} 32. Nc4 {[%emt 0:00:24]} Qf5+ {[%emt 0:00:12]} 33. Ka1 {[%emt 0:00:39]} Nc2+ {[%emt 0:01:05]} 34. Ka2 {[%emt 0:00:06]} Nxe1 {[%emt 0:00:07]} 35. Nxb6 {[%emt 0:00:04] [#]} Re8 $1 {[%emt 0:00:23] Weighted Error Value: White=0.64/Black=0.14 (very precise)} 0-1

[Event "1000GM Saint Louis 2022"]
[Site "Saint Louis"]
[Date "2022.07.22"]
[Round "8.2"]
[White "Abrahamyan, Tatev"]
[Black "Chandra, Akshat"]
[Result "0-1"]
[ECO "B57"]
[WhiteElo "2291"]
[BlackElo "2485"]
[Annotator "TA"]
[PlyCount "76"]
[EventDate "2022.07.20"]
[EventType "tourn"]
[EventCountry "USA"]
[SourceTitle "playchess.com"]
[Source "ChessBase"]
[SourceQuality "1"]
[TimeControl "5400+30"]

{[%evp 16,76,18,0,0,0,0,0,8,0,2,-47,-44,-71,0,0,0,-20,-15,-21,-16,-21,-19,-19,0,-39,-27,-26,-31,-27,-22,-21,-17,-27,0,0,0,-33,-16,-83,-73,-73,-71,-64,-64,-209,-228,-201,-215,-425,-320,-518,-217,-366,-350,-879,-879,-974,-968,-29981,-1101,-969,-932]} 1. e4 {[%emt 0:00:03]} c5 {[%emt 0:08:47]} 2. Nf3 {[%emt 0:00:06]} Nc6 {[%emt 0:00:08]} 3. d4 {[%emt 0:00:25]} cxd4 {[%emt 0:00:06]} 4. Nxd4 {[%emt 0:00:02]} Nf6 {[%emt 0:00:09]} 5. Nc3 {[%emt 0:00:04]} d6 {[%emt 0:00:04]} 6. Bc4 {[%emt 0:03:14]} Qb6 {[%emt 0:03:13]} 7. Nb3 {[%emt 0:01:38]} e6 {[%emt 0:00:40]} 8. Be3 {[%emt 0:01:04]} Qc7 {[%emt 0:00:10]} 9. Be2 {[%emt 0:01:46]} a6 {[%emt 0:00:46] B57: Classical Sicilian: Sozin with 6...Qb6.} 10. f4 {[%emt 0:03:17]} b5 {[%emt 0:02:02]} 11. a3 {[%emt 0:01:49]} Bb7 {[%emt 0:01:30] The position is equal.} 12. O-O {[%emt 0:06:10]} Be7 {[%emt 0:00:10]} 13. g4 {[%emt 0:07:46]} (13. Qe1 $11) 13... h6 $15 {[%emt 0:13:06] [#]} 14. Rf2 $146 {[%emt 0:15:12]} ({Predecessor:} 14. Qd2 g5 15. f5 h5 16. gxh5 Nxh5 17. fxe6 fxe6 18. Bg4 Rh6 19. Bxg5 Bxg5 20. Qxg5 {0-1 (43) Antoniewski,R (2405)-Grabarczyk,B (2445) Krynica 1997}) 14... b4 {[%emt 0:10:10]} (14... Rd8 $17) 15. axb4 $11 {[%emt 0:02:10]} Nxb4 {[%emt 0:00:05]} 16. Bf3 {[%emt 0:03:25]} d5 {[%emt 0:02:03][%cal Rd5e4]} 17. e5 {[%emt 0:02:13]} Ne4 {[%emt 0:00:07]} 18. Bxe4 {[%emt 0:12:15]} dxe4 {[%emt 0:00:09]} 19. Qd4 {[%emt 0:01:57]} O-O {[%emt 0:13:05]} 20. Na5 {[%emt 0:04:53]} (20. Nc5 $5 {[%cal Rd4b4]} Nd5 21. Nxd5 (21. N3xe4 Rad8 $15) (21. N5xe4 Rfd8 $17) 21... Bxd5 22. Nxe4 $11) 20... Nc6 {[%emt 0:19:20]} 21. Qc4 {[%emt 0:07:42]} Rfc8 {[%emt 0:04:06]} 22. Nxc6 {[%emt 0:02:28]} Qxc6 {[%emt 0:09:27]} 23. Qxc6 {[%emt 0:00:26]} Bxc6 {[%emt 0:00:03]} 24. Na4 {[%emt 0:04:07] [#] Strongly threatening Nb6.} Rab8 {[%emt 0:00:03]} 25. Nb6 {[%emt 0:01:50]} Rd8 {[%emt 0:00:28]} 26. Rff1 {[%emt 0:03:49]} f5 {[%emt 0:08:10]} 27. Rfc1 {[%emt 0:10:41]} (27. exf6 $11 Bxf6 28. Rfb1) 27... g5 $17 {[%emt 0:04:06] White must now prevent ...gxf4.} 28. Nc4 {[%emt 0:01:55]} gxf4 {[%emt 0:01:18]} (28... fxg4 29. fxg5 Bxg5 30. Bxg5 hxg5 31. Ne3 $11) 29. Bxf4 {[%emt 0:00:12]} Bc5+ {[%emt 0:00:03]} ({Reject} 29... fxg4 30. Nd6 $11) 30. Kg2 {[%emt 0:00:55] This costs White the game.} (30. Ne3 $15) 30... e3+ $1 $19 {[%emt 0:00:50][%cal Be4e3,Be3e2][%mdl 32]} ({Worse is} 30... fxg4 31. Rxa6 Bb5 32. Ra5 $17) 31. Kg3 {[%emt 0:00:16]} Rd4 {[%emt 0:01:02]} 32. b3 {[%emt 0:01:23]} (32. Nxe3 {might work better.} Re4 33. Nxf5 exf5 34. Rxa6 Bf2+ 35. Kxf2 Rxf4+ 36. Ke3 Re4+ 37. Kf2) 32... e2 {[%emt 0:00:32] And now ...Rf8 would win.} 33. Re1 $2 {[%emt 0:00:43]} (33. h4) 33... fxg4 {[%emt 0:00:12]} (33... h5 $142 34. h4 fxg4) 34. Rxa6 {[%emt 0:00:46]} (34. Bxh6 $142 Bf3 35. Nd2) 34... Bf3 {[%emt 0:00:25][%cal Od4f4] aiming for ...Rxf4! Dancing on a razor blade.} 35. Rxe6 $2 {[%emt 0:00:31]} (35. Bd2 h5 36. h4) 35... Bb4 {[%emt 0:00:24][%cal Rb4e1] A strong pair of Bishops.} 36. Nd2 {[%emt 0:00:30]} Rxf4 {[%emt 0:00:58]} 37. Nxf3 {[%emt 0:00:35] [#]} Rxf3+ {[%emt 0:00:15]} (37... gxf3 $142 $1 38. Kxf4 (38. Rxe2 fxe2) 38... f2 39. Rxe2 f1=Q+ 40. Ke3 Qh3+ 41. Ke4 Qxe6 42. Rg2+ Kh7 43. Rf2 Rd8 44. h4 Qg4+ 45. Rf4 Qg2+ 46. Rf3 Bd2 47. e6 Qe2+ 48. Kf5 Qxf3+ 49. Ke5 Qf4#) 38. Kxg4 {[%emt 0:00:09]} Rf2 {[%emt 0:00:12] Weighted Error Value: White=0.82/Black=0.31} ({Inferior is} 38... Bxe1 39. Kxf3 Bh4 40. Kxe2 $15) 0-1